bitfinex/quotes_SOLUSD_20260208
["timestamp","ask_amount","ask_price","bid_price","bid_amount"]
[1770593987887,11.5680325,86.446,86.411,4.37494862]
[1770593988419,11.02922556,86.44,86.411,4.37494862]
[1770593988700,11.5680325,86.446,86.411,4.37494862]
[1770593989291,11.02922556,86.43,86.39,15.40417418]
[1770593989503,11.57019056,86.429,86.393,4.37494862]
[1770593990197,4.222225,86.428,86.393,4.37494862]
[1770593990910,4.222225,86.419,86.381,11.5765807]
[1770593991109,11.02922556,86.41,86.371,4.37494862]
[1770593991285,40.49566696,86.429,86.393,4.37494862]
[1770593991286,11.57019056,86.429,86.393,4.37494862]
[1770593991493,11.56885202,86.439,86.395,4.37494862]
[1770593991700,15.79107702,86.439,86.395,4.37494862]
[1770593991893,11.02922556,86.43,86.395,4.37494862]
[1770593992389,11.02922556,86.42,86.384,4.37494862]
[1770593992885,4.222225,86.429,86.393,15.94989907]
[1770593993086,11.02922556,86.43,86.394,4.37494862]
[1770593993719,40.49098207,86.439,86.401,4.37494862]
[1770593993720,11.56885202,86.439,86.401,4.37494862]
[1770593994624,11.56778117,86.448,86.411,4.37494862]
[1770593995695,11.56778117,86.448,86.413,4.37494862]
[1770593996200,4.222225,86.467,86.421,4.37494862]
[1770593996512,11.02922556,86.46,86.421,4.37494862]
[1770593997852,11.56537327,86.465,86.431,4.37494862]
[1770593998284,11.02922556,86.46,86.431,4.37494862]
[1770593998487,11.56537327,86.465,86.431,4.37494862]
[1770593998792,11.56523951,86.466,86.431,4.37494862]
[1770593999503,36.64,86.478,86.441,4.37494862]
[1770593999705,11.02297907,86.5,86.463,4.37494862]
[1770593999895,11.56082729,86.499,86.463,4.37494862]
[1770594000301,4.222225,86.469,86.43,11.02297907]
[1770594000494,11.02297907,86.46,86.421,4.37494862]
[1770594000699,4.222225,86.469,86.431,15.94479944]
[1770594000894,4.222225,86.469,86.403,57.86821213]
[1770594000895,4.222225,86.459,86.411,4.37494862]
[1770594001095,11.02297907,86.46,86.421,4.37494862]
[1770594001294,5.13032502,86.485,86.367,5.36086188]
[1770594001295,11.56082729,86.499,86.451,4.37494862]
[1770594001535,7.25272137,86.51,86.481,4.37494862]
[1770594001718,7.25272137,86.51,86.491,4.37494862]
[1770594002102,4.222225,86.568,86.501,4.37494862]
[1770594002426,4.222225,86.568,86.457,5.36086188]
[1770594002427,4.222225,86.509,86.47,11.02297907]
[1770594003120,15.24520407,86.5,86.466,11.56518007]
[1770594003435,98.18870713,86.568,86.46,11.02297907]
[1770594003436,11.02297907,86.54,86.491,4.37494862]
[1770594003610,4.222225,86.549,86.51,11.02297907]
[1770594004006,4.222225,86.547,86.511,11.55922368]
[1770594004409,11.55337951,86.555,86.52,11.02297907]
[1770594004723,15.77560451,86.555,86.512,4.37494862]
[1770594005115,4.222225,86.549,86.5,15.39792769]
[1770594005310,4.222225,86.519,86.485,11.56260023]
[1770594005512,4.222225,86.519,86.479,11.56342046]
[1770594005821,11.02297907,86.51,86.471,4.37494862]
[1770594006015,11.56082729,86.499,86.461,4.37494862]
[1770594006323,11.02297907,86.49,86.461,4.37494862]
[1770594006534,11.02297907,86.49,86.451,15.94212402]
[1770594006714,11.02297907,86.48,86.451,4.37494862]
[1770594006911,11.02297907,86.46,86.425,4.37494862]
[1770594007225,11.02297907,86.47,86.425,4.37494862]
[1770594007409,11.02297907,86.46,86.425,4.37494862]
[1770594007614,4.222225,86.469,86.43,11.02297907]
[1770594008022,11.56617587,86.459,86.42,11.02297907]
[1770594008240,11.56096094,86.498,86.45,11.02297907]
[1770594008415,11.56096094,86.498,86.451,4.37494862]
[1770594008416,11.02297907,86.49,86.451,4.37494862]
[1770594008823,11.02297907,86.47,86.439,4.37494862]
[1770594009038,4.222225,86.479,86.44,11.02297907]
[1770594009333,15.24520407,86.49,86.441,4.37494862]
[1770594009504,11.56096094,86.498,86.461,4.37494862]
[1770594009705,11.02297907,86.48,86.449,4.37494862]
[1770594009902,15.78449577,86.489,86.45,22.59035905]
[1770594010723,11.56126725,86.496,86.451,4.37494862]
[1770594010920,11.02297907,86.49,86.451,4.37494862]
[1770594011130,11.56126725,86.496,86.46,11.02297907]
[1770594011624,11.56126725,86.496,86.451,4.37494862]
[1770594012135,11.02297907,86.49,86.45,11.02297907]
[1770594012427,11.02297907,86.48,86.443,11.56827946]
[1770594012629,11.02297907,86.48,86.359,1.1579569]
[1770594012630,4.222225,86.459,86.416,4.37494862]
[1770594012817,4.222225,86.459,86.42,15.39792769]
[1770594013017,47.68297907,86.48,86.44,11.02297907]
[1770594013220,11.02297907,86.48,86.441,4.37494862]
[1770594013619,11.02297907,86.47,86.43,11.02297907]
[1770594013820,11.02297907,86.49,86.441,4.37494862]
[1770594014031,11.02297907,86.49,86.451,4.37494862]
[1770594014227,11.02297907,86.48,86.43,15.39792769]
[1770594014431,15.24520407,86.47,86.43,15.39792769]
[1770594014627,4.222225,86.47,86.435,4.37494862]
[1770594014809,4.222225,86.469,86.423,4.37494862]
[1770594015015,4.222225,86.469,86.34,11.02297907]
[1770594015016,11.02297907,86.45,86.413,11.5722497]
[1770594015215,4.222225,86.459,86.413,11.5722497]
[1770594015515,11.02297907,86.45,86.411,4.24783448]
[1770594016116,11.56898586,86.438,86.4,11.02297907]
[1770594016324,11.02297907,86.44,86.256,38.96039216]
[1770594016325,11.02297907,86.46,86.42,11.02297907]
[1770594016531,11.56590832,86.461,86.421,4.05465791]
[1770594016730,11.56296613,86.483,86.451,4.05465791]
[1770594016932,11.02297907,86.48,86.402,4.05465791]
[1770594017236,11.02297907,86.46,86.421,4.05465791]
[1770594017812,11.02297907,86.46,86.401,40.5087904]
[1770594017813,4.24998663,86.479,86.431,4.05465791]
[1770594018029,4.24998663,86.469,86.431,4.05465791]
[1770594018311,4.24998663,86.449,86.405,4.05465791]
[1770594018523,4.24998663,86.449,86.409,4.05465791]
[1770594018717,40.47740204,86.468,86.431,11.56991462]
[1770594018914,11.02297907,86.45,86.415,4.05465791]
[1770594019115,4.24998663,86.449,86.41,11.02297907]
[1770594019319,4.24998663,86.449,86.412,11.57246116]
[1770594019525,4.24998663,86.449,86.404,4.05465791]
[1770594019526,11.02297907,86.44,86.404,4.05465791]
[1770594019826,4.24998663,86.449,86.404,15.62817394]
[1770594020014,11.02297907,86.44,86.404,15.62817394]
[1770594020215,11.56885202,86.439,86.404,4.05465791]
[1770594020633,4.24998663,86.429,86.391,4.05465791]
[1770594020942,11.56885202,86.439,86.392,4.05465791]
[1770594021127,11.56885202,86.439,86.401,4.05465791]
[1770594021313,4.24998663,86.438,86.401,4.05465791]
[1770594022333,11.5691197,86.437,86.401,4.05465791]
[1770594022839,11.56751379,86.449,86.403,4.05465791]
[1770594023033,15.81750042,86.449,86.403,4.05465791]
[1770594023218,11.02297907,86.44,86.403,4.05465791]
[1770594024816,44.7409687,86.439,86.403,4.05465791]
[1770594025112,4.24998663,86.438,86.394,11.57481643]
[1770594025318,11.02297907,86.41,86.367,4.05465791]
[1770594025538,11.02297907,86.41,86.371,4.05465791]
[1770594025729,4.24998663,86.409,86.376,11.5771885]
[1770594025918,4.24998663,86.409,86.371,4.05465791]
[1770594026235,4.24998663,86.409,86.375,11.57739228]
[1770594026428,4.24998663,86.409,86.371,4.05465791]
[1770594026634,4.24998663,86.399,86.36,11.02297907]
[1770594026832,4.24998663,86.397,86.352,11.5804151]
[1770594027039,4.24998663,86.389,86.344,15.63619528]
[1770594027218,4.24998663,86.389,86.35,11.02297907]
[1770594027535,40.51019698,86.398,86.36,11.02297907]
[1770594027536,15.82432862,86.398,86.36,11.02297907]
[1770594027742,15.82432862,86.398,86.351,4.05465791]
[1770594027922,15.82432862,86.398,86.355,4.05465791]
[1770594028240,15.82432862,86.398,86.36,11.02297907]
[1770594028426,44.76018361,86.398,86.359,4.05465791]
[1770594028623,44.76018361,86.398,86.355,11.579977]
[1770594028936,44.76018361,86.398,86.351,4.05465791]
[1770594029112,11.57434199,86.398,86.361,4.05465791]
[1770594029835,5.13032502,86.414,86.342,40.53647123]
[1770594029836,11.57154123,86.419,86.381,4.05465791]
[1770594030336,11.02297907,86.41,86.371,4.05465791]
[1770594030715,40.50036475,86.419,86.343,4.05465791]
[1770594030716,11.02297907,86.39,86.343,4.05465791]
[1770594030915,11.57476353,86.395,86.361,4.05465791]
[1770594031225,36.72,86.413,86.351,11.58064179]
[1770594031226,11.57286856,86.409,86.371,4.05465791]
[1770594031533,4.24998663,86.408,86.361,4.05465791]
[1770594032416,11.02297907,86.4,86.361,4.05465791]
[1770594033038,11.57313643,86.407,86.371,4.05465791]
[1770594033340,11.02297907,86.4,86.371,4.05465791]
[1770594033634,11.57242242,86.413,86.38,11.02297907]
[1770594033840,11.57242242,86.413,86.371,4.05465791]
[1770594035040,11.5715294,86.419,86.373,4.05465791]
[1770594035926,4.24998663,86.418,86.373,4.05465791]
[1770594036122,4.24998663,86.399,86.357,4.05465791]
[1770594036340,11.02297907,86.41,86.371,4.05465791]
[1770594036728,4.24998663,86.399,86.357,4.05465791]
[1770594036935,11.02297907,86.39,86.358,11.57962733]
[1770594037128,11.57554781,86.389,86.358,4.05465791]
[1770594037642,36.76,86.421,86.351,11.58064179]
[1770594037643,15.2729657,86.42,86.371,4.05465791]
[1770594038322,11.02297907,86.43,86.391,4.05465791]
[1770594038522,11.02297907,86.43,86.351,98.43545527]
[1770594038523,4.24998663,86.419,86.377,4.05465791]
[1770594038721,11.02297907,86.41,86.377,4.05465791]
[1770594038942,11.02297907,86.43,86.39,11.02297907]
[1770594039123,11.02297907,86.43,86.393,4.05465791]
[1770594039318,22.59304488,86.43,86.393,4.05465791]
[1770594039851,22.59304488,86.43,86.392,11.57514584]
[1770594039852,11.02297907,86.44,86.401,4.05465791]
[1770594040739,11.02297907,86.43,86.401,4.05465791]
[1770594040941,4.24998663,86.429,86.391,4.05465791]
[1770594041141,11.02297907,86.42,86.391,4.05465791]
[1770594041345,11.02297907,86.41,86.379,4.05465791]
[1770594041646,4.24998663,86.399,86.361,4.05465791]
[1770594041846,4.24998663,86.389,86.349,4.05465791]
[1770594042038,4.24998663,86.399,86.362,11.57916676]
[1770594042353,4.24998663,86.389,86.35,11.02297907]
[1770594042649,11.02297907,86.4,86.362,11.57916676]
[1770594042941,15.2729657,86.4,86.362,11.57916676]
[1770594043147,11.02297907,86.39,86.362,11.57916676]
[1770594043342,11.02297907,86.4,86.363,4.05465791]
[1770594043651,7.28346902,86.435,86.391,4.05465791]
[1770594043840,7.28346902,86.435,86.401,4.05465791]
[1770594044032,11.02297907,86.43,86.401,4.05465791]
[1770594044233,7.28346902,86.435,86.401,4.05465791]
[1770594044540,4.24998663,86.457,86.411,4.05465791]
[1770594044741,11.02297907,86.44,86.401,4.05465791]
[1770594044946,11.56636095,86.458,86.411,4.16970658]
[1770594045126,4.37643926,86.449,86.411,4.16970658]
[1770594045333,11.02297907,86.44,86.411,4.16970658]
[1770594045536,11.02297907,86.44,86.366,16.96787566]
[1770594045537,4.37643926,86.419,86.367,4.16970658]
[1770594045743,4.37643926,86.429,86.381,4.16970658]
[1770594046033,11.02297907,86.42,86.39,11.57531765]
[1770594046246,4.37643926,86.429,86.39,11.57531765]
[1770594046443,4.37643926,86.429,86.395,11.57473299]
[1770594046628,4.37643926,86.429,86.39,15.19268565]
[1770594046834,4.37643926,86.429,86.384,4.16970658]
[1770594047350,11.02297907,86.43,86.383,28.94055344]
[1770594047351,4.37643926,86.427,86.397,11.57439775]
[1770594047854,4.37643926,86.427,86.389,11.57541971]
[1770594048028,4.37643926,86.399,86.38,11.57673527]
[1770594048230,11.57032443,86.428,86.39,11.02297907]
[1770594048231,4.37643926,86.425,86.39,11.02297907]
[1770594048536,11.57032443,86.428,86.395,11.5747439]
[1770594048726,4.37643926,86.435,86.396,4.16970658]
[1770594048930,11.02297907,86.45,86.411,4.16970658]
[1770594049148,11.02297907,86.44,86.396,4.16970658]
[1770594049437,11.56661499,86.456,86.38,57.88352711]
[1770594049438,11.56703129,86.453,86.42,11.02297907]
[1770594049638,11.56703129,86.453,86.421,4.16970658]
[1770594049840,11.02297907,86.46,86.421,4.16970658]
[1770594050244,4.37643926,86.449,86.411,11.57260071]
[1770594050454,4.37643926,86.439,86.411,11.57260071]
[1770594051353,4.37643926,86.437,86.387,4.16970658]
[1770594051533,4.37643926,86.429,86.388,11.5756533]
[1770594051733,4.37643926,86.429,86.392,11.57507167]
[1770594051932,4.37643926,86.429,86.39,11.57536018]
[1770594052151,4.37643926,86.419,86.385,11.57602015]
[1770594052936,36.68,86.446,86.357,57.89875966]
[1770594052937,15.39941833,86.45,86.411,4.16970658]
[1770594053141,11.02297907,86.45,86.411,4.16970658]
[1770594053347,4.37643926,86.449,86.412,11.57246678]
[1770594054253,4.37643926,86.448,86.412,11.57246678]
[1770594054454,11.56751379,86.449,86.413,4.16970658]
[1770594054852,4.37643926,86.459,86.42,11.02297907]
[1770594055055,4.37643926,86.459,86.412,44.67334032]
[1770594055235,11.02297907,86.45,86.412,44.67334032]
[1770594055439,11.56687026,86.454,86.42,11.02297907]
[1770594055753,4.37643926,86.453,86.413,4.16970658]
[1770594056060,4.37643926,86.453,86.42,11.02297907]
[1770594056240,15.94341784,86.453,86.412,40.50363374]
[1770594056450,15.39941833,86.45,86.412,40.50363374]
[1770594056653,15.39941833,86.45,86.412,44.67334032]
[1770594056857,4.37643926,86.45,86.412,40.50363374]
[1770594057042,4.37643926,86.45,86.42,11.02297907]
[1770594057360,4.37643926,86.45,86.413,4.16970658]
[1770594057959,11.56624709,86.459,86.42,11.02297907]
[1770594058165,4.37643926,86.458,86.42,11.02297907]
[1770594058339,4.37643926,86.458,86.417,4.16970658]
[1770594058546,4.37643926,86.458,86.414,11.57219894]
[1770594058863,11.56624709,86.459,86.376,62.1]
[1770594058864,4.37643926,86.439,86.408,11.57298801]
[1770594059242,4.37643926,86.439,86.414,11.57219894]
[1770594059457,4.37643926,86.449,86.414,11.57219894]
[1770594059964,11.5676476,86.448,86.414,11.57219894]
[1770594060167,4.37643926,86.447,86.414,15.74190552]
[1770594060384,4.37643926,86.429,86.377,4.16970658]
[1770594060549,11.02297907,86.45,86.413,4.16970658]
[1770594060859,11.02787235,86.45,86.413,4.16970658]
[1770594061043,4.37643926,86.449,86.413,4.16970658]
[1770594061445,11.02787235,86.45,86.414,15.74190552]
[1770594061657,11.02787235,86.48,86.44,11.02787235]
[1770594061860,11.02787235,86.48,86.414,11.57219894]
[1770594061861,4.37643926,86.468,86.431,4.16970658]
[1770594062071,4.37643926,86.478,86.441,4.16970658]
[1770594062263,4.37643926,86.488,86.451,4.16970658]
[1770594062676,28.90238752,86.499,86.414,40.50269631]
[1770594062677,11.02787235,86.5,86.461,4.16970658]
[1770594062880,11.22787235,86.58,86.46,11.02787235]
[1770594062881,4.37643926,86.531,86.49,15.19757893]
[1770594063066,11.55428201,86.548,86.46,11.02787235]
[1770594063067,4.37643926,86.543,86.5,11.02787235]
[1770594063270,4.37643926,86.539,86.5,11.02787235]
[1770594063657,4.37643926,86.541,86.502,4.16970658]
[1770594063979,11.55535012,86.54,86.502,4.16970658]
[1770594064177,4.37643926,86.541,86.501,11.56055999]
[1770594064385,26.95966173,86.54,86.5,11.02787235]
[1770594064683,7.33685135,86.549,86.52,15.19757893]
[1770594064858,7.33685135,86.549,86.521,4.16970658]
[1770594065177,7.33685135,86.549,86.53,11.02787235]
[1770594065681,2.83685135,86.549,86.532,11.55641843]
[1770594065854,11.22787235,86.57,86.532,11.55641843]
[1770594065855,0.2,86.57,86.54,11.02787235]
[1770594066055,4.7648226,86.569,86.54,11.02787235]
[1770594066258,4.5,86.567,86.53,11.02787235]
[1770594066473,4.5,86.567,86.526,11.55710866]
[1770594066681,4.5,86.567,86.531,11.55653992]
[1770594066873,4.5,86.567,86.53,11.02787235]
[1770594067757,4.5,86.565,86.531,11.55652194]
[1770594067975,4.5,86.559,86.52,11.02787235]
[1770594068182,4.5,86.559,86.524,11.55740108]
[1770594068379,0.2648226,86.569,86.54,11.02787235]
[1770594068563,46.14706956,86.68,86.531,11.55655198]
[1770594068564,4.5,86.593,86.56,11.02787235]
[1770594068759,4.5,86.593,86.57,11.02787235]
[1770594069184,4.5,86.606,86.58,11.02787235]
[1770594069362,4.5,86.617,86.58,11.02787235]
[1770594069565,4.5,86.605,86.58,11.02787235]
[1770594069957,4.5,86.605,86.531,57.78275993]
[1770594069958,4.5,86.599,86.56,11.02787235]
[1770594070159,0.2,86.6,86.57,11.02787235]
[1770594070363,4.7,86.6,86.57,11.02787235]
[1770594070559,11.02787235,86.58,86.54,11.02787235]
[1770594070768,4.5,86.579,86.536,11.55575529]
[1770594070964,4.5,86.579,86.53,22.58446884]
[1770594071165,4.5,86.579,86.465,1.15653732]
[1770594071166,4.5,86.559,86.523,11.55760182]
[1770594071372,4.5,86.549,86.51,11.02787235]
[1770594071580,4.5,86.539,86.5,11.02787235]
[1770594071880,4.5,86.529,86.49,11.02787235]
[1770594072277,4.5,86.529,86.5,11.02787235]
[1770594072664,4.5,86.529,86.49,11.02787235]
[1770594072877,4.5,86.529,86.5,11.02787235]
[1770594073079,4.5,86.549,86.52,11.02787235]
[1770594073272,4.5,86.559,86.52,11.02787235]
[1770594073478,4.5,86.539,86.5,11.02787235]
[1770594073983,4.5,86.539,86.501,11.56055999]
[1770594074181,4.5,86.539,86.51,11.02787235]
[1770594074482,4.5,86.563,86.52,11.02787235]
[1770594074784,4.5,86.563,86.53,11.02787235]
[1770594074986,4.5,86.575,86.54,11.02787235]
[1770594075172,4.5,86.599,86.56,11.02787235]
[1770594075367,11.22787235,86.6,86.52,11.02787235]
[1770594075368,0.2,86.6,86.58,11.02787235]
[1770594075768,1e-08,86.6,86.59,11.02787235]
[1770594076086,0.2,86.62,86.591,11.5485443]
[1770594076273,0.2,86.62,86.572,11.55105707]
[1770594076274,11.02787235,86.61,86.572,11.55105707]
[1770594076474,4.5,86.609,86.583,11.54959605]
[1770594076667,0.2,86.62,86.591,11.5485443]
[1770594076870,4.7,86.64,86.591,40.41990506]
[1770594077070,4.7,86.64,86.61,11.02787235]
[1770594077291,11.02787235,86.63,86.591,40.41990506]
[1770594077498,4.5,86.629,86.591,11.5485443]
[1770594077788,4.5,86.629,86.6,11.02787235]
[1770594077988,4.5,86.639,86.61,11.02787235]
[1770594078167,4.5,86.638,86.608,11.54627115]
[1770594078366,4.5,86.638,86.61,11.02787235]
[1770594078781,4.5,86.638,86.605,11.54659688]
[1770594079176,4.5,86.638,86.61,11.54597742]
[1770594079375,4.5,86.638,86.6,11.02787235]
[1770594079688,4.5,86.638,86.611,11.54587754]
[1770594079892,4.5,86.638,86.605,11.54660206]
[1770594080087,4.5,86.638,86.604,11.54678357]
[1770594080267,4.5,86.636,86.6,11.02787235]
[1770594080599,4.5,86.619,86.582,11.54963224]
[1770594080769,4.5,86.609,86.575,11.55054617]
[1770594080972,4.5,86.599,86.568,11.55153591]
[1770594081171,4.5,86.599,86.576,11.55054518]
[1770594081566,4.5,86.599,86.549,28.88516254]
[1770594081777,4.5,86.589,86.552,11.55363887]
[1770594081979,4.5,86.579,86.54,11.02787235]
[1770594082171,4.5,86.578,86.544,11.55479009]
[1770594082382,4.5,86.589,86.55,11.02787235]
[1770594082686,4.5,86.579,86.544,11.55479009]
[1770594083291,4.5,86.589,86.55,11.02787235]
[1770594083496,4.5,86.588,86.55,11.02787235]
[1770594084293,5.13032502,86.615,86.52,11.02787235]
[1770594084294,4.5,86.609,86.57,11.02787235]
[1770594084672,11.5441448,86.624,86.57,11.02787235]
[1770594084897,3.49,87.915,86.58,11.02787235]
[1770594084898,4.5,86.639,86.58,11.02787235]
[1770594085098,4.5,86.639,86.551,40.43858533]
[1770594085099,4.5,86.629,86.59,11.02787235]
[1770594085406,4.5,86.629,86.6,11.02787235]
[1770594085616,4.5,86.629,86.558,5.13032502]
[1770594085617,4.5,86.629,86.59,11.02787235]
[1770594086099,4.5,86.619,86.58,11.02787235]
[1770594086305,4.5,86.609,86.581,11.54987814]
[1770594086598,4.5,86.609,86.575,11.55059175]
[1770594087294,4.5,86.589,86.562,11.55234678]
[1770594087496,4.5,86.589,86.556,11.55316392]
[1770594088093,4.5,86.579,86.54,11.02787235]
[1770594088296,4.5,86.577,86.541,11.5552166]
[1770594089197,11.02787235,86.58,86.541,40.4432581]
[1770594089396,4.5,86.593,86.55,11.02787235]
[1770594089593,4.5,86.589,86.55,11.02787235]
[1770594089895,62.85504736,86.618,86.541,40.4432581]
[1770594089896,4.5,86.606,86.57,11.02787235]
[1770594090081,4.5,86.599,86.56,11.02787235]
[1770594090277,4.5,86.597,86.551,11.55388152]
[1770594090599,4.5,86.579,86.54,11.02787235]
[1770594091291,4.5,86.579,86.551,11.55388152]
[1770594091493,11.02787235,86.57,86.53,11.02787235]
[1770594091708,11.02787235,86.57,86.542,11.55499014]
[1770594091911,4.5,86.579,86.542,11.55499014]
[1770594092427,36.44,86.611,86.502,57.80163622]
[1770594092428,4.5,86.596,86.56,11.02787235]
[1770594092624,4.5,86.589,86.55,11.02787235]
[1770594092921,4.5,86.579,86.54,11.02787235]
[1770594093419,4.5,86.589,86.55,11.02787235]
[1770594093623,4.5,86.579,86.54,11.02787235]
[1770594094321,4.5,86.579,86.541,11.5552166]
[1770594094506,4.5,86.579,86.55,11.02787235]
[1770594095718,4.5,86.579,86.541,40.4432581]
[1770594095920,4.5,86.577,86.541,11.5552166]
[1770594097122,4.5,86.569,86.519,28.89532742]
[1770594097300,4.5,86.569,86.538,11.55551934]
[1770594097498,4.5,86.569,86.541,11.5552166]
[1770594097735,4.5,86.569,86.541,40.4432581]
[1770594098516,4.5,86.588,86.55,11.02787235]
[1770594100031,4.5,86.579,86.541,11.5552166]
[1770594100797,4.5,86.577,86.541,11.5552166]
[1770594101220,4.5,86.569,86.541,11.5552166]
[1770594104234,4.5,86.579,86.56,11.02787235]
[1770594104406,4.5,86.579,86.55,11.02787235]
[1770594104730,4.5,86.579,86.56,11.02787235]
[1770594105505,4.5,86.579,86.561,11.55254675]
[1770594105704,4.5,86.589,86.561,11.55254675]
[1770594106421,4.5,86.589,86.556,11.55319534]
[1770594106606,4.5,86.579,86.556,11.55319534]
[1770594107118,4.5,86.579,86.54,39.91603039]
[1770594107320,4.5,86.589,86.56,11.02787235]
[1770594107913,4.5,86.589,86.57,11.02787235]
[1770594108126,28.86556536,86.609,86.561,11.55254675]
[1770594108127,4.5,86.619,86.58,11.02787235]
[1770594108623,4.5,86.618,86.59,11.02787235]
[1770594108807,16.04338596,86.63,86.6,11.02787235]
[1770594109508,4.5,86.623,86.59,11.02787235]
[1770594109722,4.5,86.619,86.59,11.02787235]
[1770594109919,4.5,86.609,86.57,11.02787235]
[1770594110628,4.5,86.599,86.35,6.47860703]
[1770594110923,4.5,86.589,86.55,22.58177603]
[1770594111114,4.5,86.589,86.55,11.02787235]
[1770594111511,4.5,86.579,86.54,11.02787235]
[1770594111829,4.5,86.549,86.524,11.55739312]
[1770594112030,4.5,86.547,86.51,11.02787235]
[1770594112725,4.5,86.539,86.5,11.02787235]
[1770594112930,4.5,86.539,86.51,11.02787235]
[1770594113528,11.02787235,86.53,86.497,11.5610946]
[1770594113719,11.55428201,86.548,86.5,11.02787235]
[1770594113720,4.5,86.529,86.5,11.02787235]
[1770594113920,4.5,86.54,86.51,11.02787235]
[1770594114110,4.5,86.54,86.511,11.55922368]
[1770594114313,4.5,86.553,86.52,11.02787235]
[1770594114632,36.38,86.581,86.52,11.02787235]
[1770594114633,15.52787235,86.6,86.54,11.02787235]
[1770594114820,4.5,86.611,86.58,11.02787235]
[1770594115607,4.5,86.599,86.57,11.02787235]
[1770594116024,4.5,86.599,86.571,11.55121229]
[1770594117322,4.5,86.597,86.565,11.55198697]
[1770594117520,11.54761079,86.598,86.55,11.55400426]
[1770594117521,4.5,86.579,86.55,11.55400426]
[1770594117911,4.5,86.579,86.554,11.55336166]
[1770594118112,4.5,86.579,86.549,11.55414677]
[1770594118530,4.5,86.577,86.542,11.55507663]
[1770594118716,4.5,86.577,86.547,11.55440993]
[1770594119811,4.5,86.577,86.55,11.02787235]
[1770594120124,11.02787235,86.59,86.56,11.02787235]
[1770594120125,4.5,86.59,86.56,11.02787235]
[1770594120321,4.5,86.59,86.55,11.02787235]
[1770594120527,5.13032502,86.612,86.514,62.9240298]
[1770594120528,4.5,86.569,86.535,11.55598583]
[1770594120838,4.5,86.569,86.54,11.02787235]
[1770594121131,5.36086188,86.627,86.54,11.02787235]
[1770594121132,4.5,86.597,86.56,11.02787235]
[1770594121317,4.5,86.579,86.54,22.58321747]
[1770594121510,15.52787235,86.59,86.55,11.02787235]
[1770594121720,4.5,86.589,86.56,11.02787235]
[1770594121922,4.5,86.589,86.551,11.55388152]
[1770594121923,11.02787235,86.6,86.57,11.02787235]
[1770594121924,4.5,86.6,86.57,11.02787235]
[1770594122232,4.5,86.598,86.56,11.02787235]
[1770594122421,4.5,86.598,86.57,11.02787235]
[1770594122626,4.5,86.614,86.58,11.02787235]
[1770594122826,4.5,86.609,86.57,11.02787235]
[1770594123031,4.5,86.599,86.57,10.98702719]
[1770594124126,4.5,86.597,86.566,11.55175749]
[1770594124527,4.5,86.597,86.57,11.55121799]
[1770594125040,4.5,86.608,86.58,10.98702719]
[1770594126134,4.5,86.606,86.57,10.98702719]
[1770594126335,4.5,86.606,86.568,11.55152193]
[1770594126637,4.5,86.605,86.57,10.98702719]
[1770594127140,4.5,86.605,86.57,22.53830726]
[1770594127528,4.5,86.605,86.57,10.98702719]
[1770594127836,4.5,86.589,86.55,10.98702719]
[1770594128034,4.5,86.589,86.568,11.55154129]
[1770594128222,4.5,86.589,86.56,10.98702719]
[1770594128415,4.5,86.587,86.55,10.98702719]
[1770594128618,4.5,86.587,86.555,11.55332688]
[1770594128818,4.5,86.587,86.55,22.54096331]
[1770594129324,4.5,86.587,86.56,10.98702719]
[1770594129641,4.5,86.587,86.55,22.5409761]
[1770594130747,4.5,86.585,86.56,10.98702719]
[1770594130944,4.5,86.609,86.57,10.98702719]
[1770594131524,4.5,86.589,86.545,11.55464367]
[1770594131731,4.5,86.579,86.55,10.98702719]
[1770594131929,4.5,86.579,86.551,11.55388152]
[1770594132246,4.5,86.579,86.548,11.55420414]
[1770594132548,4.5,86.579,86.543,11.5548477]
[1770594132845,4.5,86.577,86.543,11.5548477]
[1770594133548,4.5,86.577,86.55,10.98702719]
[1770594134130,10.98702719,86.59,86.55,10.98702719]
[1770594134131,4.5,86.589,86.55,10.98702719]
[1770594134526,4.5,86.588,86.55,10.98702719]
[1770594134727,4.5,86.577,86.543,11.5548477]
[1770594134921,4.5,86.577,86.541,11.5552166]
[1770594135426,4.5,86.577,86.536,11.55578824]
[1770594135742,4.5,86.559,86.51,10.98702719]
[1770594135945,4.5,86.559,86.517,11.55838735]
[1770594136143,4.5,86.559,86.53,10.98702719]
[1770594136352,4.5,86.559,86.52,10.98702719]
[1770594136549,4.5,86.539,86.505,11.5599204]